[Event "Titled Tuesday Blitz May 30 Early 2023"]
[White "SashaKuzhilniy"]
[Black "Fier, Alexandr"]
[BlackFideId "2107139"]
[WhiteElo "2627"]
[BlackElo "2610"]
[Result "1/2-1/2"]
[Round "08"]
[TimeControl "180+2"]
[Date "2023.05.30"]
[WhiteClock "0:00:22"]
[BlackClock "0:01:43"]

1. b3 {[%clk 0:03:00]}  Nf6 {[%clk 0:03:00]} 2. Bb2 {[%clk 0:03:01]}  c5 {[%clk 0:02:59]} 3. Nf3 {[%clk 0:03:01]}  d6 {[%clk 0:03:00]} 4. g3 {[%clk 0:03:00]}  e5 {[%clk 0:03:00]} 5. c4 {[%clk 0:03:00]}  Nc6 {[%clk 0:03:00]} 6. Bg2 {[%clk 0:03:00]}  h5 {[%clk 0:03:01]} 7. d3 {[%clk 0:02:55]}  Bg4 {[%clk 0:03:01]} 8. h3 {[%clk 0:02:54]}  Bf5 {[%clk 0:02:59]} 9. Nc3 {[%clk 0:02:51]}  Qd7 {[%clk 0:03:00]} 10. e3 {[%clk 0:02:50]}  Be7 {[%clk 0:03:00]} 11. d4 {[%clk 0:02:40]}  e4 {[%clk 0:02:59]} 12. Nh4 {[%clk 0:02:35]}  Bh7 {[%clk 0:02:58]} 13. dxc5 {[%clk 0:02:27]}  Nb4 {[%clk 0:02:52]} 14. Bf1 {[%clk 0:02:15]}  dxc5 {[%clk 0:02:47]} 15. Qxd7+ {[%clk 0:02:14]}  Nxd7 {[%clk 0:02:48]} 16. O-O-O {[%clk 0:02:13]}  Ne5 {[%clk 0:02:42]} 17. Nb5 {[%clk 0:02:02]}  Nbd3+ {[%clk 0:02:39]} 18. Bxd3 {[%clk 0:02:02]}  Nxd3+ {[%clk 0:02:39]} 19. Rxd3 {[%clk 0:02:01]}  exd3 {[%clk 0:02:40]} 20. Nc7+ {[%clk 0:02:02]}  Kd7 {[%clk 0:02:41]} 21. Nxa8 {[%clk 0:02:02]}  Rxa8 {[%clk 0:02:42]} 22. Bxg7 {[%clk 0:02:00]}  Rg8 {[%clk 0:02:41]} 23. Be5 {[%clk 0:01:56]}  Kc6 {[%clk 0:02:34]} 24. Rd1 {[%clk 0:01:47]}  b5 {[%clk 0:02:34]} 25. Ng2 {[%clk 0:01:41]}  bxc4 {[%clk 0:02:31]} 26. bxc4 {[%clk 0:01:41]}  Rb8 {[%clk 0:02:17]} 27. Nf4 {[%clk 0:01:31]}  Rb4 {[%clk 0:02:17]} 28. Nxd3 {[%clk 0:01:29]}  Rxc4+ {[%clk 0:02:17]} 29. Kb2 {[%clk 0:01:23]}  f6 {[%clk 0:02:13]} 30. Bc3 {[%clk 0:01:22]}  Ra4 {[%clk 0:02:13]} 31. Nf4 {[%clk 0:01:21]}  Bg8 {[%clk 0:02:12]} 32. a3 {[%clk 0:01:20]}  Ra6 {[%clk 0:02:08]} 33. Nxh5 {[%clk 0:01:17]}  Rb6+ {[%clk 0:02:08]} 34. Kc1 {[%clk 0:01:16]}  Rb3 {[%clk 0:02:06]} 35. Bb2 {[%clk 0:01:15]}  c4 {[%clk 0:02:06]} 36. Nxf6 {[%clk 0:01:09]}  Be6 {[%clk 0:02:00]} 37. Ne4 {[%clk 0:01:05]}  Bxh3 {[%clk 0:01:58]} 38. Nc3 {[%clk 0:00:59]}  Bxa3 {[%clk 0:01:55]} 39. Bxa3 {[%clk 0:00:58]}  Rxc3+ {[%clk 0:01:56]} 40. Kb2 {[%clk 0:00:58]}  Rb3+ {[%clk 0:01:57]} 41. Ka2 {[%clk 0:00:58]}  Bf5 {[%clk 0:01:53]} 42. Rd6+ {[%clk 0:00:56]}  Kc7 {[%clk 0:01:53]} 43. Rd4 {[%clk 0:00:41]}  Bb1+ {[%clk 0:01:52]} 44. Ka1 {[%clk 0:00:42]}  Bd3 {[%clk 0:01:53]} 45. Bb2 {[%clk 0:00:35]}  Rb6 {[%clk 0:01:50]} 46. Bc3 {[%clk 0:00:33]}  Rb3 {[%clk 0:01:49]} 47. Bb2 {[%clk 0:00:33]}  a5 {[%clk 0:01:50]} 48. Rd5 {[%clk 0:00:27]}  a4 {[%clk 0:01:49]} 49. Ra5 {[%clk 0:00:27]}  c3 {[%clk 0:01:48]} 50. Rc5+ {[%clk 0:00:26]}  Kd6 {[%clk 0:01:42]} 51. Rxc3 {[%clk 0:00:27]}  Be4 {[%clk 0:01:40]} 52. Rxb3 {[%clk 0:00:20]}  axb3 {[%clk 0:01:40]} 53. g4 {[%clk 0:00:19]}  Ke6 {[%clk 0:01:38]} 54. Bd4 {[%clk 0:00:18]}  Bf3 {[%clk 0:01:38]} 55. g5 {[%clk 0:00:18]}  Kf5 {[%clk 0:01:39]} 56. Bf6 {[%clk 0:00:19]}  Bd1 {[%clk 0:01:38]} 57. f4 {[%clk 0:00:18]}  Bc2 {[%clk 0:01:39]} 58. Kb2 {[%clk 0:00:18]}  Kg6 {[%clk 0:01:39]} 59. Bd4 {[%clk 0:00:17]}  Kf5 {[%clk 0:01:40]} 60. Bc5 {[%clk 0:00:18]}  Kg6 {[%clk 0:01:41]} 61. Bb6 {[%clk 0:00:18]}  Kf5 {[%clk 0:01:41]} 62. Ba7 {[%clk 0:00:19]}  Kg6 {[%clk 0:01:42]} 63. Bb6 {[%clk 0:00:20]}  Kf5 {[%clk 0:01:43]} 64. Ba7 {[%clk 0:00:21]}  Kg6 {[%clk 0:01:43]} 65. Bb6 {[%clk 0:00:22]} 1/2-1/2


[Site "https://www.chess.com"]

[Event "Titled Tuesday Blitz May 30 Early 2023"]
[White "iHateNAJDORF"]
[Black "Yuan, Qingyu"]
[BlackFideId "8609772"]
[WhiteElo "2621"]
[BlackElo "2359"]
[Result "1-0"]
[Round "08"]
[TimeControl "180+2"]
[Date "2023.05.30"]
[WhiteClock "0:02:02"]
[BlackClock "0:00:57"]

1. c4 {[%clk 0:03:00]}  Nf6 {[%clk 0:02:57]} 2. Nc3 {[%clk 0:03:00]}  c5 {[%clk 0:02:56]} 3. Nf3 {[%clk 0:03:00]}  d5 {[%clk 0:02:56]} 4. cxd5 {[%clk 0:02:59]}  Nxd5 {[%clk 0:02:57]} 5. e4 {[%clk 0:02:58]}  Nb4 {[%clk 0:02:54]} 6. Bc4 {[%clk 0:02:38]}  Nd3+ {[%clk 0:02:54]} 7. Ke2 {[%clk 0:02:36]}  Nf4+ {[%clk 0:02:54]} 8. Kf1 {[%clk 0:02:35]}  Nd3 {[%clk 0:02:54]} 9. Ke2 {[%clk 0:02:36]}  Nxc1+ {[%clk 0:02:46]} 10. Rxc1 {[%clk 0:02:37]}  e6 {[%clk 0:02:46]} 11. d4 {[%clk 0:02:34]}  cxd4 {[%clk 0:02:42]} 12. Bb5+ {[%clk 0:02:32]}  Bd7 {[%clk 0:02:40]} 13. Bxd7+ {[%clk 0:02:27]}  Nxd7 {[%clk 0:02:17]} 14. Qxd4 {[%clk 0:02:28]}  Nc5 {[%clk 0:02:15]} 15. Qc4 {[%clk 0:02:23]}  Be7 {[%clk 0:02:09]} 16. Rhd1 {[%clk 0:02:21]}  Qb6 {[%clk 0:01:53]} 17. Na4 {[%clk 0:02:18]}  Nxa4 {[%clk 0:01:39]} 18. Qxa4+ {[%clk 0:02:19]}  Kf8 {[%clk 0:01:40]} 19. b3 {[%clk 0:02:18]}  g6 {[%clk 0:01:31]} 20. Rd7 {[%clk 0:02:15]}  Rd8 {[%clk 0:01:30]} 21. Ne5 {[%clk 0:02:12]}  f6 {[%clk 0:01:11]} 22. Rcc7 {[%clk 0:02:07]}  fxe5 {[%clk 0:01:00]} 23. Rxe7 {[%clk 0:02:04]}  Qd6 {[%clk 0:00:55]} 24. Rf7+ {[%clk 0:02:01]}  Kg8 {[%clk 0:00:56]} 25. Rg7+ {[%clk 0:02:01]}  Kf8 {[%clk 0:00:57]} 26. Rcf7# {[%clk 0:02:02]} 1-0


[Site "https://www.chess.com"]

[Event "Titled Tuesday Blitz May 30 Early 2023"]
[White "Kilic, Eray"]
[Black "Melian, Juan Sebastian"]
[WhiteFideId "44517173"]
[BlackFideId "3706575"]
[WhiteElo "2328"]
[BlackElo "2092"]
[Result "1-0"]
[Round "08"]
[TimeControl "180+2"]
[Date "2023.05.30"]
[WhiteClock "0:01:12"]
[BlackClock "0:00:06"]

1. e4 {[%clk 0:02:59]}  e5 {[%clk 0:02:56]} 2. Nc3 {[%clk 0:02:58]}  Nf6 {[%clk 0:02:53]} 3. f4 {[%clk 0:02:56]}  d5 {[%clk 0:02:48]} 4. fxe5 {[%clk 0:02:56]}  Nxe4 {[%clk 0:02:48]} 5. Qf3 {[%clk 0:02:56]}  Nxc3 {[%clk 0:02:30]} 6. bxc3 {[%clk 0:02:57]}  Nc6 {[%clk 0:02:30]} 7. Bb5 {[%clk 0:02:57]}  Be6 {[%clk 0:02:30]} 8. Ne2 {[%clk 0:02:57]}  Qd7 {[%clk 0:02:18]} 9. O-O {[%clk 0:02:57]}  Be7 {[%clk 0:02:16]} 10. d4 {[%clk 0:02:54]}  O-O {[%clk 0:02:12]} 11. Qg3 {[%clk 0:02:54]}  Kh8 {[%clk 0:02:01]} 12. Bg5 {[%clk 0:02:51]}  Rae8 {[%clk 0:01:48]} 13. Nf4 {[%clk 0:02:49]}  Bf5 {[%clk 0:01:46]} 14. Bxe7 {[%clk 0:02:46]}  Rxe7 {[%clk 0:01:43]} 15. Qh4 {[%clk 0:02:33]}  Ree8 {[%clk 0:01:18]} 16. Rf2 {[%clk 0:02:29]}  a6 {[%clk 0:01:11]} 17. Bxc6 {[%clk 0:02:28]}  Qxc6 {[%clk 0:01:11]} 18. Raf1 {[%clk 0:02:21]}  Be4 {[%clk 0:01:07]} 19. Qg3 {[%clk 0:02:16]}  Kg8 {[%clk 0:00:48]} 20. h4 {[%clk 0:01:39]}  Qh6 {[%clk 0:00:48]} 21. Nh3 {[%clk 0:01:37]}  Qg6 {[%clk 0:00:34]} 22. Qe3 {[%clk 0:01:29]}  Qh5 {[%clk 0:00:25]} 23. Ng5 {[%clk 0:01:20]}  Bg6 {[%clk 0:00:25]} 24. Rf4 {[%clk 0:01:19]}  f6 {[%clk 0:00:24]} 25. Qf2 {[%clk 0:01:12]}  h6 {[%clk 0:00:06]} 26. g4 {[%clk 0:01:12]} 1-0


[Site "https://www.chess.com"]

[Event "Titled Tuesday Blitz May 30 Early 2023"]
[White "Vakhlamov, Igor L."]
[Black "Bodnaruk, Anastasia"]
[WhiteFideId "24126748"]
[BlackFideId "4181751"]
[WhiteElo "2407"]
[BlackElo "2304"]
[Result "0-1"]
[Round "08"]
[TimeControl "180+2"]
[Date "2023.05.30"]
[WhiteClock "0:00:02"]
[BlackClock "0:00:07"]

1. e4 {[%clk 0:03:00]}  c5 {[%clk 0:03:00]} 2. Nf3 {[%clk 0:03:01]}  d6 {[%clk 0:03:00]} 3. Nc3 {[%clk 0:03:01]}  Nf6 {[%clk 0:02:58]} 4. d4 {[%clk 0:03:02]}  cxd4 {[%clk 0:02:58]} 5. Qxd4 {[%clk 0:03:03]}  a6 {[%clk 0:02:56]} 6. e5 {[%clk 0:03:03]}  Nc6 {[%clk 0:02:55]} 7. Qa4 {[%clk 0:03:03]}  Ng4 {[%clk 0:02:50]} 8. Bb5 {[%clk 0:02:42]}  Bd7 {[%clk 0:02:28]} 9. Bxc6 {[%clk 0:02:41]}  bxc6 {[%clk 0:02:28]} 10. O-O {[%clk 0:02:26]}  Nxe5 {[%clk 0:02:21]} 11. Nxe5 {[%clk 0:02:25]}  dxe5 {[%clk 0:02:22]} 12. Rd1 {[%clk 0:02:25]}  e6 {[%clk 0:02:12]} 13. Be3 {[%clk 0:02:14]}  Be7 {[%clk 0:02:03]} 14. Qg4 {[%clk 0:01:54]}  g6 {[%clk 0:01:34]} 15. Bh6 {[%clk 0:01:29]}  f5 {[%clk 0:01:30]} 16. Qc4 {[%clk 0:01:24]}  Kf7 {[%clk 0:01:21]} 17. Na4 {[%clk 0:01:10]}  g5 {[%clk 0:00:47]} 18. Nc5 {[%clk 0:01:00]}  Bxc5 {[%clk 0:00:46]} 19. Qxc5 {[%clk 0:01:01]}  Kg6 {[%clk 0:00:43]} 20. Rd3 {[%clk 0:00:30]}  e4 {[%clk 0:00:30]} 21. Bxg5 {[%clk 0:00:20]}  Kxg5 {[%clk 0:00:17]} 22. Rg3+ {[%clk 0:00:20]}  Kf6 {[%clk 0:00:17]} 23. Rd1 {[%clk 0:00:21]}  Qe7 {[%clk 0:00:15]} 24. Rd6 {[%clk 0:00:13]}  Kf7 {[%clk 0:00:11]} 25. Qd4 {[%clk 0:00:11]}  e5 {[%clk 0:00:11]} 26. Qd2 {[%clk 0:00:07]}  Be6 {[%clk 0:00:09]} 27. h4 {[%clk 0:00:04]}  Rad8 {[%clk 0:00:08]} 28. Rxd8 {[%clk 0:00:05]}  Qxd8 {[%clk 0:00:08]} 29. Qh6 {[%clk 0:00:05]}  Qf6 {[%clk 0:00:08]} 30. Qh5+ {[%clk 0:00:04]}  Ke7 {[%clk 0:00:09]} 31. Qe2 {[%clk 0:00:04]}  f4 {[%clk 0:00:09]} 32. Rc3 {[%clk 0:00:03]}  Bd5 {[%clk 0:00:09]} 33. Qxa6 {[%clk 0:00:03]}  f3 {[%clk 0:00:07]} 34. Qa7+ {[%clk 0:00:03]}  Ke6 {[%clk 0:00:07]} 35. g3 {[%clk 0:00:02]}  Qh6 {[%clk 0:00:07]} 36. Kf1 {[%clk 0:00:02]}  Qc1# {[%clk 0:00:07]} 0-1


[Site "https://www.chess.com"]

[Event "Titled Tuesday Blitz May 30 Early 2023"]
[White "Martic, Ivan"]
[Black "Sieciechowicz, Marcin"]
[WhiteFideId "929301"]
[BlackFideId "1130170"]
[WhiteElo "2360"]
[BlackElo "2302"]
[Result "1-0"]
[Round "08"]
[TimeControl "180+2"]
[Date "2023.05.30"]
[WhiteClock "0:00:19"]
[BlackClock "0:00:45"]

1. d4 {[%clk 0:02:56]}  d5 {[%clk 0:02:59]} 2. c4 {[%clk 0:02:54]}  c6 {[%clk 0:03:00]} 3. Nf3 {[%clk 0:02:52]}  Nf6 {[%clk 0:03:00]} 4. Nc3 {[%clk 0:02:53]}  e6 {[%clk 0:03:01]} 5. e3 {[%clk 0:02:52]}  Nbd7 {[%clk 0:03:01]} 6. Qc2 {[%clk 0:02:52]}  Bd6 {[%clk 0:03:01]} 7. Bd3 {[%clk 0:02:52]}  O-O {[%clk 0:02:59]} 8. O-O {[%clk 0:02:48]}  h6 {[%clk 0:02:59]} 9. e4 {[%clk 0:02:45]}  dxe4 {[%clk 0:02:59]} 10. Nxe4 {[%clk 0:02:46]}  Nxe4 {[%clk 0:02:59]} 11. Bxe4 {[%clk 0:02:46]}  c5 {[%clk 0:03:00]} 12. Rd1 {[%clk 0:02:38]}  Qc7 {[%clk 0:02:59]} 13. h3 {[%clk 0:02:29]}  Nf6 {[%clk 0:02:58]} 14. Bd3 {[%clk 0:02:28]}  b6 {[%clk 0:02:58]} 15. Qe2 {[%clk 0:02:20]}  Bb7 {[%clk 0:02:56]} 16. dxc5 {[%clk 0:02:20]}  Bxc5 {[%clk 0:02:50]} 17. Ne5 {[%clk 0:02:14]}  Rfd8 {[%clk 0:02:43]} 18. Bf4 {[%clk 0:02:13]}  Bd6 {[%clk 0:02:36]} 19. Rac1 {[%clk 0:01:51]}  Bxe5 {[%clk 0:02:36]} 20. Bxe5 {[%clk 0:01:41]}  Qc6 {[%clk 0:02:37]} 21. Qf1 {[%clk 0:01:34]}  Nd7 {[%clk 0:02:29]} 22. Bd4 {[%clk 0:01:24]}  Nc5 {[%clk 0:02:26]} 23. Be2 {[%clk 0:01:21]}  a5 {[%clk 0:02:21]} 24. Bf3 {[%clk 0:01:19]}  Qc7 {[%clk 0:02:21]} 25. Qe2 {[%clk 0:01:15]}  Rac8 {[%clk 0:02:10]} 26. b3 {[%clk 0:00:54]}  Bxf3 {[%clk 0:02:01]} 27. Qxf3 {[%clk 0:00:54]}  e5 {[%clk 0:01:56]} 28. Bxc5 {[%clk 0:00:50]}  Qxc5 {[%clk 0:01:55]} 29. Qe3 {[%clk 0:00:39]}  Qxe3 {[%clk 0:01:41]} 30. fxe3 {[%clk 0:00:40]}  Kf8 {[%clk 0:01:41]} 31. e4 {[%clk 0:00:37]}  Ke7 {[%clk 0:01:39]} 32. Kf2 {[%clk 0:00:33]}  Rd6 {[%clk 0:01:26]} 33. Rxd6 {[%clk 0:00:29]}  Kxd6 {[%clk 0:01:27]} 34. Rd1+ {[%clk 0:00:30]}  Ke6 {[%clk 0:01:26]} 35. Rd5 {[%clk 0:00:28]}  Rc5 {[%clk 0:01:19]} 36. g4 {[%clk 0:00:25]}  Rxd5 {[%clk 0:01:14]} 37. cxd5+ {[%clk 0:00:20]}  Kd6 {[%clk 0:01:14]} 38. h4 {[%clk 0:00:21]}  Kc5 {[%clk 0:01:13]} 39. h5 {[%clk 0:00:20]}  b5 {[%clk 0:01:10]} 40. a3 {[%clk 0:00:19]}  g6 {[%clk 0:00:45]} 41. g5 {[%clk 0:00:19]} 1-0


[Site "https://www.chess.com"]

[Event "Titled Tuesday Blitz May 30 Early 2023"]
[White "Shukhman, Anna"]
[Black "Halkias, Stelios"]
[WhiteFideId "54180058"]
[BlackFideId "4201809"]
[WhiteElo "2235"]
[BlackElo "2451"]
[Result "1-0"]
[Round "08"]
[TimeControl "180+2"]
[Date "2023.05.30"]
[WhiteClock "0:00:13"]
[BlackClock "0:00:15"]

1. e4 {[%clk 0:03:00]}  c6 {[%clk 0:02:56]} 2. d4 {[%clk 0:03:00]}  d5 {[%clk 0:02:56]} 3. f3 {[%clk 0:03:00]}  e6 {[%clk 0:02:55]} 4. Nc3 {[%clk 0:02:59]}  Bb4 {[%clk 0:02:56]} 5. a3 {[%clk 0:03:00]}  Ba5 {[%clk 0:02:55]} 6. b4 {[%clk 0:02:56]}  Bb6 {[%clk 0:02:52]} 7. Be3 {[%clk 0:02:54]}  e5 {[%clk 0:02:35]} 8. Nge2 {[%clk 0:02:50]}  Ne7 {[%clk 0:02:30]} 9. Qd2 {[%clk 0:02:49]}  exd4 {[%clk 0:02:26]} 10. Nxd4 {[%clk 0:02:46]}  dxe4 {[%clk 0:02:22]} 11. Nxe4 {[%clk 0:02:41]}  O-O {[%clk 0:02:10]} 12. Bc4 {[%clk 0:02:37]}  Nd5 {[%clk 0:02:10]} 13. Bf2 {[%clk 0:02:36]}  Nd7 {[%clk 0:01:38]} 14. O-O {[%clk 0:02:34]}  Ne5 {[%clk 0:01:38]} 15. Bb3 {[%clk 0:02:25]}  Nf6 {[%clk 0:01:35]} 16. Rfe1 {[%clk 0:02:16]}  Ng6 {[%clk 0:01:26]} 17. Rad1 {[%clk 0:02:11]}  Nxe4 {[%clk 0:01:25]} 18. Rxe4 {[%clk 0:02:09]}  Qf6 {[%clk 0:01:25]} 19. h4 {[%clk 0:01:53]}  Bf5 {[%clk 0:00:59]} 20. Nxf5 {[%clk 0:01:41]}  Qxf5 {[%clk 0:00:59]} 21. Qg5 {[%clk 0:01:33]}  Bxf2+ {[%clk 0:00:40]} 22. Kxf2 {[%clk 0:01:32]}  Qxg5 {[%clk 0:00:40]} 23. hxg5 {[%clk 0:01:32]}  Rad8 {[%clk 0:00:41]} 24. Red4 {[%clk 0:01:30]}  Rde8 {[%clk 0:00:22]} 25. Rd7 {[%clk 0:01:23]}  Re5 {[%clk 0:00:22]} 26. Rxb7 {[%clk 0:01:23]}  Rxg5 {[%clk 0:00:22]} 27. Rxa7 {[%clk 0:01:12]}  h5 {[%clk 0:00:22]} 28. Rdd7 {[%clk 0:01:08]}  Kh7 {[%clk 0:00:18]} 29. Rxf7 {[%clk 0:01:07]}  Rd8 {[%clk 0:00:18]} 30. Rad7 {[%clk 0:01:07]}  Rxd7 {[%clk 0:00:17]} 31. Rxd7 {[%clk 0:01:06]}  Nf4 {[%clk 0:00:18]} 32. g3 {[%clk 0:01:04]}  Nh3+ {[%clk 0:00:18]} 33. Kg2 {[%clk 0:01:03]}  Nf4+ {[%clk 0:00:18]} 34. Kh2 {[%clk 0:01:03]}  Ne2 {[%clk 0:00:18]} 35. f4 {[%clk 0:00:54]}  Rg4 {[%clk 0:00:11]} 36. Be6 {[%clk 0:00:51]}  Rxg3 {[%clk 0:00:10]} 37. Bf5+ {[%clk 0:00:51]}  Kh6 {[%clk 0:00:10]} 38. Re7 {[%clk 0:00:51]}  Nd4 {[%clk 0:00:07]} 39. Bd3 {[%clk 0:00:40]}  h4 {[%clk 0:00:06]} 40. Be4 {[%clk 0:00:35]}  Re3 {[%clk 0:00:06]} 41. Re8 {[%clk 0:00:30]}  g6 {[%clk 0:00:05]} 42. Bxc6 {[%clk 0:00:27]}  Rc3 {[%clk 0:00:04]} 43. Be4 {[%clk 0:00:27]}  Nxc2 {[%clk 0:00:03]} 44. Re6 {[%clk 0:00:27]}  Nd4 {[%clk 0:00:03]} 45. Rxg6+ {[%clk 0:00:27]}  Kh5 {[%clk 0:00:04]} 46. Rg5+ {[%clk 0:00:27]}  Kh6 {[%clk 0:00:04]} 47. Rd5 {[%clk 0:00:27]}  Ne2 {[%clk 0:00:04]} 48. Rd6+ {[%clk 0:00:26]}  Kg7 {[%clk 0:00:04]} 49. f5 {[%clk 0:00:27]}  Nf4 {[%clk 0:00:04]} 50. f6+ {[%clk 0:00:26]}  Kf7 {[%clk 0:00:05]} 51. a4 {[%clk 0:00:22]}  Re3 {[%clk 0:00:05]} 52. Bc6 {[%clk 0:00:13]}  Re2+ {[%clk 0:00:04]} 53. Kg1 {[%clk 0:00:13]}  h3 {[%clk 0:00:04]} 54. Bf3 {[%clk 0:00:12]}  h2+ {[%clk 0:00:02]} 55. Kh1 {[%clk 0:00:12]}  Rf2 {[%clk 0:00:03]} 56. Bd1 {[%clk 0:00:09]}  Nh3 {[%clk 0:00:01]} 57. Bb3+ {[%clk 0:00:09]}  Kg6 {[%clk 0:00:01]} 58. f7+ {[%clk 0:00:08]}  Kg7 {[%clk 0:00:02]} 59. Rd8 {[%clk 0:00:06]}  Rf1+ {[%clk 0:00:01]} 60. Kxh2 {[%clk 0:00:06]}  Ng5 {[%clk 0:00:02]} 61. Rg8+ {[%clk 0:00:06]}  Kh6 {[%clk 0:00:02]} 62. f8=Q+ {[%clk 0:00:06]}  Rxf8 {[%clk 0:00:03]} 63. Rxf8 {[%clk 0:00:06]}  Nf3+ {[%clk 0:00:04]} 64. Rxf3 {[%clk 0:00:05]}  Kg5 {[%clk 0:00:05]} 65. a5 {[%clk 0:00:06]}  Kg4 {[%clk 0:00:06]} 66. a6 {[%clk 0:00:07]}  Kxf3 {[%clk 0:00:06]} 67. a7 {[%clk 0:00:08]}  Ke3 {[%clk 0:00:07]} 68. a8=Q {[%clk 0:00:08]}  Kd4 {[%clk 0:00:08]} 69. Qd5+ {[%clk 0:00:09]}  Kc3 {[%clk 0:00:09]} 70. Qc4+ {[%clk 0:00:10]}  Kb2 {[%clk 0:00:10]} 71. b5 {[%clk 0:00:11]}  Ka3 {[%clk 0:00:11]} 72. b6 {[%clk 0:00:11]}  Kb2 {[%clk 0:00:12]} 73. b7 {[%clk 0:00:12]}  Ka3 {[%clk 0:00:13]} 74. b8=Q {[%clk 0:00:13]}  Kb2 {[%clk 0:00:14]} 75. Bd1+ {[%clk 0:00:13]}  Ka3 {[%clk 0:00:15]} 76. Qa6# {[%clk 0:00:13]} 1-0


[Site "https://www.chess.com"]

[Event "Titled Tuesday Blitz May 30 Early 2023"]
[White "Hambleton, Aman"]
[Black "Lymar, Vladislav"]
[WhiteFideId "2606577"]
[BlackFideId "14162180"]
[WhiteElo "2511"]
[BlackElo "2234"]
[Result "1-0"]
[Round "08"]
[TimeControl "180+2"]
[Date "2023.05.30"]
[WhiteClock "0:00:07"]
[BlackClock "0:01:17"]

1. d4 {[%clk 0:02:54]}  d5 {[%clk 0:02:59]} 2. Bf4 {[%clk 0:02:50]}  c5 {[%clk 0:02:59]} 3. e3 {[%clk 0:02:49]}  Nc6 {[%clk 0:03:00]} 4. c3 {[%clk 0:02:49]}  Nf6 {[%clk 0:03:00]} 5. Nd2 {[%clk 0:02:49]}  Bf5 {[%clk 0:02:59]} 6. Qb3 {[%clk 0:02:46]}  Qb6 {[%clk 0:02:55]} 7. dxc5 {[%clk 0:02:45]}  Qxc5 {[%clk 0:02:49]} 8. Qxb7 {[%clk 0:02:44]}  Rd8 {[%clk 0:02:44]} 9. Nb3 {[%clk 0:02:43]}  Qb6 {[%clk 0:02:44]} 10. Qxb6 {[%clk 0:02:37]}  axb6 {[%clk 0:02:45]} 11. Bc7 {[%clk 0:01:46]}  Rc8 {[%clk 0:02:38]} 12. Bxb6 {[%clk 0:01:46]}  e6 {[%clk 0:02:33]} 13. a4 {[%clk 0:01:25]}  Rb8 {[%clk 0:02:33]} 14. a5 {[%clk 0:00:35]}  Nxa5 {[%clk 0:02:32]} 15. Bb5+ {[%clk 0:00:27]}  Nd7 {[%clk 0:02:29]} 16. Rxa5 {[%clk 0:00:11]}  Rxb6 {[%clk 0:02:28]} 17. Nd4 {[%clk 0:00:08]}  Be7 {[%clk 0:02:19]} 18. Ra7 {[%clk 0:00:04]}  e5 {[%clk 0:02:16]} 19. Nxf5 {[%clk 0:00:02]}  Rxb5 {[%clk 0:02:17]} 20. Ra8+ {[%clk 0:00:02]}  Nb8 {[%clk 0:02:15]} 21. Nxg7+ {[%clk 0:00:01]}  Kd7 {[%clk 0:02:14]} 22. Nf5 {[%clk 0:00:01]}  Rxb2 {[%clk 0:02:13]} 23. Ra1 {[%clk 0:00:02]}  Rc8 {[%clk 0:01:53]} 24. Nf3 {[%clk 0:00:02]}  Rxc3 {[%clk 0:01:51]} 25. Nxe7 {[%clk 0:00:02]}  Kxe7 {[%clk 0:01:50]} 26. Nxe5 {[%clk 0:00:03]}  Ke6 {[%clk 0:01:43]} 27. Nf3 {[%clk 0:00:03]}  Nc6 {[%clk 0:01:43]} 28. O-O {[%clk 0:00:03]}  Rd3 {[%clk 0:01:42]} 29. Rad1 {[%clk 0:00:03]}  Rbb3 {[%clk 0:01:39]} 30. Rxd3 {[%clk 0:00:02]}  Rxd3 {[%clk 0:01:40]} 31. h4 {[%clk 0:00:02]}  h6 {[%clk 0:01:40]} 32. Rc1 {[%clk 0:00:02]}  Kd6 {[%clk 0:01:40]} 33. g3 {[%clk 0:00:02]}  Ne7 {[%clk 0:01:40]} 34. Kf1 {[%clk 0:00:02]}  Ng6 {[%clk 0:01:38]} 35. Ke2 {[%clk 0:00:02]}  Ra3 {[%clk 0:01:39]} 36. Rd1 {[%clk 0:00:02]}  Ne7 {[%clk 0:01:37]} 37. Nd4 {[%clk 0:00:02]}  Ke5 {[%clk 0:01:36]} 38. Rd2 {[%clk 0:00:02]}  Ra8 {[%clk 0:01:35]} 39. Nf3+ {[%clk 0:00:02]}  Ke6 {[%clk 0:01:35]} 40. Nd4+ {[%clk 0:00:02]}  Kd6 {[%clk 0:01:36]} 41. Kf3 {[%clk 0:00:03]}  Ng6 {[%clk 0:01:35]} 42. Nf5+ {[%clk 0:00:03]}  Ke6 {[%clk 0:01:35]} 43. Nxh6 {[%clk 0:00:04]}  Ne5+ {[%clk 0:01:36]} 44. Kf4 {[%clk 0:00:02]}  Ra4+ {[%clk 0:01:32]} 45. Kg5 {[%clk 0:00:01]}  f6+ {[%clk 0:01:32]} 46. Kh5 {[%clk 0:00:02]}  Ra8 {[%clk 0:01:32]} 47. g4 {[%clk 0:00:02]}  Nf3 {[%clk 0:01:30]} 48. Rb2 {[%clk 0:00:02]}  d4 {[%clk 0:01:24]} 49. Rb6+ {[%clk 0:00:02]}  Ke7 {[%clk 0:01:24]} 50. Rb7+ {[%clk 0:00:02]}  Ke6 {[%clk 0:01:24]} 51. Rb6+ {[%clk 0:00:03]}  Ke7 {[%clk 0:01:25]} 52. Nf5+ {[%clk 0:00:03]}  Kf7 {[%clk 0:01:24]} 53. Rb7+ {[%clk 0:00:04]}  Ke6 {[%clk 0:01:22]} 54. Nxd4+ {[%clk 0:00:04]}  Nxd4 {[%clk 0:01:22]} 55. exd4 {[%clk 0:00:05]}  Rh8+ {[%clk 0:01:22]} 56. Kg6 {[%clk 0:00:05]}  Rxh4 {[%clk 0:01:22]} 57. Rb6+ {[%clk 0:00:04]}  Ke7 {[%clk 0:01:20]} 58. Kf5 {[%clk 0:00:05]}  Rh2 {[%clk 0:01:20]} 59. f4 {[%clk 0:00:05]}  Rd2 {[%clk 0:01:21]} 60. Re6+ {[%clk 0:00:05]}  Kd7 {[%clk 0:01:21]} 61. Rxf6 {[%clk 0:00:05]}  Rxd4 {[%clk 0:01:21]} 62. g5 {[%clk 0:00:06]}  Rd5+ {[%clk 0:01:21]} 63. Kg6 {[%clk 0:00:06]}  Ke7 {[%clk 0:01:22]} 64. f5 {[%clk 0:00:07]}  Rd8 {[%clk 0:01:22]} 65. Rf7+ {[%clk 0:00:07]}  Ke8 {[%clk 0:01:22]} 66. f6 {[%clk 0:00:07]}  Rd5 {[%clk 0:01:22]} 67. Ra7 {[%clk 0:00:06]}  Re5 {[%clk 0:01:19]} 68. Ra8+ {[%clk 0:00:06]}  Kd7 {[%clk 0:01:19]} 69. Kh6 {[%clk 0:00:06]}  Ke6 {[%clk 0:01:19]} 70. Re8+ {[%clk 0:00:06]}  Kf5 {[%clk 0:01:19]} 71. Rxe5+ {[%clk 0:00:06]}  Kxe5 {[%clk 0:01:17]} 72. Kg7 {[%clk 0:00:07]} 1-0


[Site "https://www.chess.com"]